bitfinex/quotes_ETHUSD_20240730
["timestamp","ask_amount","ask_price","bid_price","bid_amount"]
[1722352557460,3.01379,3318.1,3317.3,0.01548397]
[1722352557695,0.59248895,3318.0,3317.3,0.01548397]
[1722352558499,3.96702985,3318.0,3317.3,0.01548397]
[1722352558699,3.01398,3317.9,3317.3,0.01548397]
[1722352558861,0.59248895,3317.8,3317.3,0.01548397]
[1722352559061,0.55,3317.7,3317.3,0.01548397]
[1722352559376,0.59248895,3318.0,3317.3,0.01548397]
[1722352559700,0.55,3317.9,3317.3,0.31849537]
[1722352559869,0.04248895,3318.0,3317.3,0.31849537]
[1722352560266,0.04248895,3318.1,3317.3,0.01548397]
[1722352560471,3.0139,3318.0,3317.3,0.01548397]
[1722352560711,3.60645895,3317.9,3317.3,0.01548397]
[1722352560872,0.59248895,3317.9,3317.3,0.01548397]
[1722352561603,3.60644895,3317.9,3317.3,0.01548397]
[1722352561803,3.96709384,3317.9,3317.3,0.01548397]
[1722352562006,0.95313384,3317.9,3317.3,0.01548397]
[1722352562201,0.59248895,3317.9,3317.3,0.01548397]
[1722352562407,0.04248895,3317.9,3317.3,0.01548397]
[1722352564170,0.55,3318.1,3317.4,2.3746]
[1722352564375,3.568,3318.3,3317.4,2.43487975]
[1722352564615,3.568,3318.3,3317.5,0.24503637]
[1722352564887,3.568,3318.3,3317.6,0.06027845]
[1722352565217,1.15915624,3318.6,3317.6,0.06027845]
[1722352565575,4.17248624,3318.6,3317.6,0.06027845]
[1722352565820,1.20164519,3318.6,3317.6,0.06027845]
[1722352566023,0.35799735,3318.6,3317.6,3.07445845]
[1722352566319,0.3155084,3318.6,3317.9,3.01389]
[1722352566487,0.3155084,3318.6,3318.0,3.07413046]
[1722352566823,0.3155084,3318.6,3318.1,2.3506]
[1722352566995,0.3155084,3318.6,3318.2,3.07393827]
[1722352567323,0.3155084,3318.6,3318.3,0.51832022]
[1722352567496,0.3155084,3318.6,3318.3,3.53190022]
[1722352567715,0.3155084,3318.6,3318.4,0.06026487]
[1722352567916,0.3155084,3318.6,3318.3,3.53190022]
[1722352568237,0.3155084,3318.6,3318.4,0.06026115]
[1722352568444,0.3155084,3318.6,3318.4,3.73431029]
[1722352568652,0.3155084,3318.6,3318.5,3.0134]
[1722352568808,0.3155084,3318.6,3318.5,3.07366081]
[1722352569248,6.02475,3319.7,3318.5,3.07366081]
[1722352569569,0.31542965,3319.2,3318.5,3.07366081]
[1722352569854,7.47,3319.7,3318.7,3.0132]
[1722352570150,0.31542448,3319.2,3318.8,0.06025648]
[1722352570368,7.47,3319.7,3319.0,3.01293]
[1722352570524,0.31540763,3319.2,3319.1,3.0730993]
[1722352570852,7.47,3319.7,3319.1,0.84850293]
[1722352571061,0.31539479,3319.3,3318.9,2.399]
[1722352571438,0.31539479,3319.3,3319.0,0.06025008]
[1722352571736,0.31539479,3319.3,3319.2,3.01277]
[1722352571939,0.31539479,3319.3,3319.1,3.01285]
[1722352572148,0.31539479,3319.3,3318.9,5.41196]
[1722352572450,0.31539479,3319.3,3318.3,10.38357]
[1722352572451,0.31539479,3319.3,3318.5,2.2681]
[1722352573007,0.55,3319.2,3318.5,2.2681]
[1722352573218,0.59248895,3319.2,3318.5,2.2681]
[1722352574505,0.59248895,3319.2,3317.8,3.0]
[1722352574506,0.59248895,3319.2,3318.1,2.3058]
[1722352574813,0.74885637,3319.1,3318.1,5.31952]
[1722352575060,0.55,3319.2,3318.3,3.01358]
[1722352575207,0.55,3319.2,3318.5,3.01339]
[1722352575522,0.55,3319.2,3318.1,5.31952]
[1722352575727,0.55,3319.2,3318.3,3.01353]
[1722352575923,0.55,3319.2,3318.4,0.06025944]
[1722352576124,3.60531895,3319.2,3318.1,2.3058]
[1722352576459,3.76173137,3319.1,3318.1,2.3058]
[1722352576605,3.01307,3318.9,3317.7,3.01408]
[1722352576811,0.59248895,3319.0,3317.8,6.01403]
[1722352576812,0.04248895,3318.8,3317.8,6.01403]
[1722352577009,0.04248895,3318.8,3317.9,3.01394]
[1722352577210,0.04248895,3318.8,3318.1,3.01371]
[1722352577410,0.04248895,3318.8,3318.1,0.602759]
[1722352577613,0.04248895,3318.8,3317.7,6.01412]
[1722352577825,0.59248895,3318.8,3317.7,3.0]
[1722352578022,0.59248895,3318.8,3317.6,8.36451]
[1722352578023,0.04248895,3318.7,3317.6,8.36451]
[1722352578238,2.4634,3318.6,3317.5,3.25933637]
[1722352578470,0.04248895,3318.5,3317.5,3.25933637]
[1722352578617,0.59248895,3318.5,3317.5,3.25933637]
[1722352579237,0.59248895,3318.5,3317.5,0.24503637]
[1722352579445,0.59248895,3318.5,3317.4,3.01439]
[1722352579446,0.6069209,3318.4,3317.4,3.01439]
[1722352579637,0.59248895,3318.3,3317.4,3.01439]
[1722352579829,0.55,3318.3,3317.4,3.01439]
[1722352580377,0.59248895,3318.3,3317.4,3.01439]
[1722352580778,0.55,3318.3,3317.6,3.01418]
[1722352580924,3.568,3318.8,3317.8,3.01398]
[1722352581123,0.55,3318.7,3317.9,0.06027072]
[1722352581690,0.59248895,3318.7,3317.9,0.06027072]
[1722352581971,0.59248895,3318.7,3317.7,3.01408]
[1722352582264,0.55,3318.7,3317.8,3.01399]
[1722352582470,0.55,3318.7,3317.9,0.36166976]
[1722352582618,0.59248895,3318.7,3317.9,0.36166976]
[1722352582828,0.59248895,3318.7,3317.4,3.01439]
[1722352582829,3.01332,3318.6,3317.4,3.01439]
[1722352583039,3.01332,3318.6,3317.3,0.01548397]
[1722352583040,3.01381,3318.1,3317.3,0.01548397]
[1722352583244,3.568,3317.8,3317.3,0.01548397]
[1722352583539,0.55,3317.7,3317.3,0.01548397]
[1722352583738,0.59248895,3317.7,3317.3,0.01548397]
[1722352584323,4.10084515,3317.7,3317.3,0.01548397]
[1722352585178,3.0144,3317.4,3317.3,0.01548397]
[1722352585483,3.05688895,3317.4,3317.3,0.01548397]
[1722352585658,0.59248895,3317.4,3317.3,0.01548397]
[1722352585857,3.60688895,3317.4,3317.3,0.01548397]
[1722352586054,3.96757785,3317.4,3317.3,0.01548397]
[1722352586369,0.95317785,3317.4,3317.3,0.01548397]
[1722352586720,3.96757785,3317.4,3317.3,0.01548397]
[1722352587167,0.95317785,3317.4,3317.3,0.01548397]
[1722352587753,0.9106889,3317.4,3317.3,0.01548397]
[1722352587956,0.55,3317.4,3317.3,0.01548397]
[1722352588127,3.60688895,3317.4,3317.3,0.01548397]
[1722352588526,0.59248895,3317.4,3317.3,0.01548397]
[1722352588738,0.55,3317.4,3317.3,0.01548397]
[1722352589785,0.31557772,3317.5,3317.3,0.01548397]
[1722352591951,0.04248895,3318.2,3317.3,0.01548397]
[1722352592149,0.04248895,3318.2,3317.3,0.31849537]
[1722352592370,3.01382,3318.1,3317.3,0.31849537]
[1722352592552,0.04248895,3318.0,3317.3,0.01548397]
[1722352592868,0.04248895,3318.2,3317.3,0.01548397]
[1722352593490,0.04248895,3318.2,3317.4,3.01436]
[1722352593491,0.55,3318.2,3317.4,3.01436]
[1722352593659,0.31552471,3318.3,3317.5,2.50807454]
[1722352594022,0.31552471,3318.3,3317.7,3.01408]
[1722352594297,10.48309,3318.9,3317.9,3.01386]
[1722352594298,0.04248895,3318.8,3317.9,3.01386]
[1722352594456,0.04248895,3318.8,3318.0,0.06026763]
[1722352594655,0.04248895,3318.8,3317.7,3.0141]
[1722352594857,0.04248895,3318.8,3317.7,3.01411]
[1722352595053,3.61048895,3318.9,3317.8,0.38675939]
[1722352595379,0.31547637,3319.0,3317.9,5.27062]
[1722352595699,0.31547637,3319.0,3318.1,3.01369]
[1722352595858,0.31547637,3319.0,3318.3,3.01358]
[1722352596755,0.31547637,3319.0,3318.1,3.01369]
[1722352597062,0.31547637,3319.0,3318.2,0.301369]
[1722352597268,0.31547637,3319.0,3317.9,5.27058]
[1722352597466,0.31547637,3319.0,3318.1,3.01372]
[1722352597713,0.55,3318.9,3318.2,0.06026332]
[1722352597854,0.55,3318.9,3318.1,3.01371]
[1722352598055,0.55,3318.9,3318.2,0.301371]
[1722352598487,0.55,3318.9,3318.3,0.06026333]
[1722352598996,0.55,3318.9,3318.2,0.301371]
[1722352599964,0.55,3318.9,3318.1,3.01376]
[1722352600504,0.55,3318.9,3318.2,0.03618825]
[1722352600803,3.56309,3318.9,3318.2,0.03618825]
[1722352601006,0.55,3318.9,3318.2,0.03618825]
[1722352601384,2.674,3319.0,3318.3,3.01354]
[1722352601583,2.674,3319.0,3318.4,0.60633382]
[1722352601798,2.674,3319.0,3318.2,0.03618825]
[1722352601799,0.86543044,3318.9,3318.2,0.03618825]
[1722352606128,0.90791939,3318.9,3318.2,0.03618825]
[1722352606282,0.86543044,3318.9,3318.2,0.03618825]
[1722352606889,3.92096939,3318.9,3318.2,0.03618825]
[1722352607480,0.90791939,3318.9,3318.2,0.03618825]
[1722352607684,0.86543044,3318.9,3318.2,0.03618825]
[1722352608181,0.86543044,3318.9,3318.2,0.3472138]
[1722352608381,0.86543044,3318.9,3318.3,0.06026732]
[1722352610781,0.86543044,3318.9,3318.3,3.07380732]
[1722352611019,0.86543044,3318.9,3318.3,0.06026732]
[1722352611218,0.86543044,3318.9,3318.3,0.0602635]
[1722352611856,0.86543044,3318.9,3318.2,0.03618825]
[1722352612754,3.01315,3318.8,3318.2,0.03618825]
[1722352612916,0.55,3318.7,3318.2,0.03618825]
[1722352613117,0.04248895,3318.8,3318.2,0.03618825]
[1722352613842,1.82620738,3318.9,3318.2,0.03618825]
[1722352614448,1.86869633,3318.9,3318.2,0.03618825]
[1722352614624,0.75556463,3318.8,3318.2,0.03618825]
[1722352614825,0.55,3318.7,3318.2,0.03618825]
[1722352615731,0.55,3318.8,3318.2,0.03618825]
[1722352618379,0.31543044,3318.9,3318.2,0.03618825]
[1722352618891,0.31543044,3318.9,3318.2,3.04983825]
[1722352619189,0.31543044,3318.9,3318.3,0.06026291]
[1722352619394,0.31543044,3318.9,3318.2,0.34719844]
[1722352619596,0.31543044,3318.9,3318.3,0.06026365]
[1722352620280,0.31543044,3318.9,3318.2,3.36085844]
[1722352620752,0.31543044,3318.9,3318.2,0.34719844]
[1722352620949,0.31543044,3318.9,3318.2,0.03618825]
[1722352621192,0.31543044,3318.9,3318.2,3.11008192]
[1722352621487,0.31543044,3318.9,3318.2,3.11013192]
[1722352622896,0.31543044,3318.9,3318.4,3.01344]
[1722352623068,0.31543044,3318.9,3318.5,3.07365029]
[1722352623601,0.31543044,3318.9,3318.6,3.01326]
[1722352623947,0.31543044,3318.9,3318.8,3.01313]
[1722352624251,0.31543044,3318.9,3318.8,6.08651354]
[1722352624451,2.674,3319.8,3319.1,3.01286]
[1722352624681,0.3153633,3319.6,3319.2,0.06024644]
[1722352626560,0.3153633,3319.6,3319.1,35.0]
[1722352626756,2.674,3319.4,3318.8,2.2674]
[1722352627005,2.674,3319.4,3318.5,3.0134]
[1722352627006,2.674,3319.4,3318.6,3.01329]
[1722352627189,2.674,3319.4,3318.4,40.37484]
[1722352627403,2.674,3319.4,3318.5,3.0]
[1722352627714,2.674,3319.4,3318.6,3.01327]
[1722352627929,3.05517895,3319.3,3318.4,2.3614]
[1722352628263,3.05517895,3319.3,3318.3,3.0]
[1722352628264,3.60516895,3319.3,3318.3,3.0]
[1722352628382,0.59248895,3319.3,3318.2,3.04980825]
[1722352628587,0.59248895,3319.3,3318.2,0.88459908]
[1722352628588,3.01279,3319.2,3318.2,0.88459908]
[1722352628787,2.674,3319.0,3318.2,0.03618825]
[1722352629017,2.674,3319.0,3318.2,3.04983825]
[1722352629174,2.674,3319.0,3318.2,0.03618825]
[1722352629382,0.04248895,3318.9,3318.2,0.03618825]
[1722352629621,0.2716489,3318.8,3318.2,0.03618825]
[1722352629893,2.674,3318.6,3318.2,0.03618825]
[1722352630427,0.04248895,3318.7,3318.2,0.03618825]
[1722352630749,3.01332,3318.6,3318.2,0.03618825]
[1722352630924,0.55,3318.5,3318.2,0.03618825]
[1722352631518,1.22047184,3318.5,3318.2,0.03618825]
[1722352631672,1.17798289,3318.5,3318.2,0.03618825]
[1722352631872,0.55,3318.5,3318.2,0.03618825]
[1722352632118,0.55,3318.7,3318.2,0.03618825]
[1722352632322,0.55,3318.8,3318.2,0.03618825]
[1722352632802,0.04248895,3318.7,3318.2,0.03618825]
[1722352633001,3.05570895,3318.7,3318.2,0.03618825]
[1722352633218,0.55,3318.6,3318.2,0.03618825]
[1722352634726,3.56332,3318.6,3318.2,0.03618825]
[1722352635232,0.55,3318.6,3318.2,0.03618825]
[1722352636477,0.04248895,3318.7,3318.2,0.03618825]
[1722352636478,0.55,3318.7,3318.2,0.03618825]
[1722352636915,0.55,3319.0,3318.2,0.03618825]
[1722352637101,0.04248895,3318.9,3318.2,0.03618825]
[1722352637306,3.28829963,3319.6,3318.5,3.01337]
[1722352637627,0.44396654,3319.4,3318.6,0.06025541]
[1722352637809,3.45668654,3319.3,3318.3,2.4441]
[1722352637982,6.17324549,3319.2,3318.3,2.4441]
[1722352638325,2.71648895,3319.2,3318.3,2.4441]
[1722352638496,2.71648895,3319.2,3318.3,5.4576]
[1722352638827,7.47,3319.5,3318.6,3.01326]
[1722352639032,0.94722637,3319.4,3318.7,0.06025432]
[1722352639175,0.55,3319.4,3318.7,0.06025432]
[1722352639630,0.55,3319.4,3318.7,3.07340432]
[1722352639838,0.55,3319.4,3318.8,0.06025429]
[1722352640505,0.55,3319.4,3318.6,3.01327]
[1722352640712,0.59248895,3319.4,3318.6,0.68774558]
[1722352641024,0.55,3319.4,3318.7,0.06025653]
[1722352641929,0.55,3319.4,3318.8,2.4691]
[1722352642079,7.47,3319.5,3318.9,0.06025432]
[1722352642276,7.47,3319.5,3319.0,0.55424043]
[1722352642541,7.47,3319.5,3318.8,2.4691]
[1722352642829,7.47,3319.5,3318.6,3.01325]
[1722352642830,0.44014442,3319.4,3318.5,3.01338]
[1722352643032,0.59248895,3319.4,3318.5,3.01338]
[1722352643177,0.59248895,3319.4,3318.4,5.44469]
[1722352643385,0.59248895,3319.4,3318.6,3.01331]
[1722352643386,0.55,3319.4,3318.6,3.01331]
[1722352643588,0.59248895,3319.4,3318.5,3.859227]
[1722352644036,0.55,3319.4,3318.5,3.859227]
[1722352644333,0.55,3319.4,3318.7,3.01316]
[1722352644632,0.55,3319.4,3318.8,0.06025444]
[1722352644837,0.55,3319.4,3318.5,0.845827]
[1722352644838,0.59248895,3319.4,3318.5,3.859227]
[1722352645053,0.59248895,3319.4,3318.6,0.9303767]
[1722352645193,0.59248895,3319.4,3318.4,2.4312]
[1722352645391,3.60508895,3319.4,3318.4,5.4312]
[1722352645832,0.59248895,3319.4,3318.4,5.4312]
[1722352646038,3.60511895,3319.4,3318.4,5.4312]
[1722352646241,3.60511895,3319.4,3318.4,2.4312]
[1722352646242,3.01272,3319.3,3318.4,2.4312]
[1722352646533,0.59248895,3319.2,3318.4,2.4312]
[1722352646707,3.60525895,3319.2,3318.4,2.4312]
[1722352646887,0.39764899,3319.1,3318.4,2.4312]
[1722352647114,0.55,3319.0,3318.4,2.4312]
[1722352647525,0.55,3319.1,3318.4,2.4312]
[1722352648424,0.35790393,3319.2,3318.4,6.05303446]
[1722352648425,0.31541498,3319.2,3318.4,6.05303446]
[1722352648661,0.31541498,3319.2,3318.5,3.01336]
[1722352648813,0.31541498,3319.2,3318.6,0.06025682]
[1722352649751,0.31541498,3319.2,3318.4,2.4312]
[1722352649918,0.31541498,3319.2,3318.5,0.06025686]
[1722352650121,0.31541498,3319.2,3318.6,0.55049269]
[1722352650546,0.31541498,3319.2,3318.6,0.61074957]
[1722352650777,0.31541498,3319.2,3318.7,3.07343689]
[1722352651115,0.31541498,3319.2,3318.7,3.01316]
[1722352651527,0.31541498,3319.2,3318.6,0.55049269]
[1722352651764,0.31541498,3319.2,3318.9,3.01296]
[1722352651968,0.31541498,3319.2,3319.0,3.07320172]
[1722352652746,7.47,3319.5,3319.0,3.07320172]
[1722352653059,7.47,3319.5,3319.1,3.01285]
[1722352653273,0.31536246,3319.7,3319.2,3.01273]
[1722352653415,0.31536246,3319.7,3319.3,0.36754261]
[1722352653617,0.31536246,3319.7,3319.4,2.4302]
[1722352654551,0.31536246,3319.7,3319.5,0.06024459]
[1722352655975,0.31536246,3319.7,3319.6,3.01241]
[1722352656279,10.144,3320.5,3319.7,3.01231]
[1722352656571,10.144,3320.5,3319.5,0.06024459]
[1722352656572,2.674,3320.5,3319.8,0.06023725]
[1722352657641,2.674,3320.5,3319.7,3.01231]
[1722352657840,2.674,3320.5,3319.8,0.30725456]
[1722352658067,0.55,3320.4,3319.8,0.36749018]
[1722352659049,0.59248895,3320.4,3319.8,0.30725456]
[1722352659292,0.59248895,3320.4,3319.5,3.01244]
[1722352659654,0.55,3320.4,3319.5,3.01244]
[1722352659885,0.55,3320.4,3319.6,0.06023803]
[1722352661555,0.55,3320.4,3319.5,3.01248]
[1722352661750,0.55,3320.4,3319.6,0.544268]
[1722352661956,8.12717,3320.1,3319.3,0.30729774]
[1722352662268,0.55,3320.0,3319.1,6.02567]
[1722352662487,0.55,3320.0,3319.2,3.01271]
[1722352662664,0.55,3320.0,3319.1,3.01282]
[1722352662665,0.55,3320.0,3319.3,3.07286555]
[1722352662886,2.674,3320.1,3319.5,3.01241]
[1722352663066,0.04248895,3320.4,3319.6,0.301241]
[1722352663394,0.59248895,3320.4,3319.4,3.01254]
[1722352663590,0.59248895,3320.4,3319.4,3.01252]
[1722352663791,0.59248895,3320.4,3319.6,3.0124]
[1722352664154,0.55,3320.4,3319.7,0.06023814]
[1722352664375,0.55,3320.4,3319.7,0.61560195]
[1722352664601,0.55,3320.4,3319.8,0.06023579]
[1722352664764,0.55,3320.4,3319.8,3.07244579]
[1722352665180,0.55,3320.4,3319.8,3.07239579]
[1722352665394,7.47,3320.5,3319.8,0.06023579]
[1722352665767,7.47,3320.5,3319.9,3.01212]
[1722352665969,7.47,3320.5,3320.0,0.3674699]
[1722352666402,7.47,3320.5,3320.0,3.3794999]
[1722352666558,0.31531838,3320.8,3320.1,3.01195]
[1722352666757,0.1478954,3321.1,3320.2,3.07206743]
[1722352666992,0.19038435,3321.1,3320.3,0.91178913]
[1722352667179,0.19038435,3321.1,3320.3,3.92353913]
[1722352667696,0.19038435,3321.1,3320.3,0.91178913]
[1722352667883,0.19038435,3321.1,3320.3,0.85156174]
[1722352668224,0.19038435,3321.1,3320.4,0.06022586]
[1722352668359,0.55510388,3321.0,3320.4,3.10923874]
[1722352668696,0.00510388,3321.0,3320.4,3.10923874]
[1722352669802,0.00510388,3321.0,3320.0,0.30723558]
[1722352669803,3.01123,3320.9,3320.0,0.30723558]
[1722352670094,3.01123,3320.9,3319.8,2.4762]
[1722352670095,2.674,3320.6,3319.6,3.01234]
[1722352670300,0.04248895,3320.5,3319.5,5.4762]
[1722352670481,0.04248895,3320.5,3319.6,3.01236]
[1722352670682,0.04248895,3320.5,3319.6,3.0124]
[1722352670683,0.59248895,3320.5,3319.6,3.0124]
[1722352670895,0.59248895,3320.5,3319.7,3.862392]
[1722352671103,0.59248895,3320.5,3319.7,0.850102]
[1722352671262,0.55,3320.5,3319.7,0.850102]
[1722352671459,2.50270388,3321.0,3319.8,3.01217]
[1722352671763,0.59248895,3320.9,3319.7,3.0123]
[1722352671988,3.01156,3320.6,3319.5,5.4887]
[1722352672225,0.59248895,3320.5,3319.6,3.84887]
[1722352672402,2.50270388,3321.0,3320.1,3.01195]
[1722352672403,0.00510388,3321.0,3320.1,3.01195]
[1722352672605,0.00510388,3321.0,3320.2,0.301195]
[1722352673245,0.00510388,3321.0,3319.9,3.01207]
[1722352673246,5.17668895,3320.9,3319.9,3.01213]
[1722352673379,5.1342,3320.9,3320.0,0.06023322]
[1722352673582,5.1342,3320.9,3319.6,3.84887]
[1722352673583,0.04248895,3320.8,3319.6,0.84887]
[1722352673789,3.05384895,3320.8,3319.6,3.86126]
[1722352674032,3.05384895,3320.8,3319.6,3.86127]
[1722352674033,3.01153,3320.6,3319.6,3.86127]
[1722352674331,3.26648895,3320.5,3319.6,3.01236]
[1722352674542,2.71648895,3320.5,3319.6,3.01236]
[1722352674687,2.71648895,3320.5,3319.6,6.02471]
[1722352674884,2.674,3320.5,3319.7,0.06023616]
[1722352675133,0.55,3320.7,3320.0,3.01199]
[1722352675435,0.55,3320.8,3320.1,0.06023158]
[1722352676535,0.55,3320.8,3320.1,3.07218158]
[1722352676766,0.55,3320.8,3320.1,0.06023158]
[1722352677108,0.55,3320.8,3320.1,3.07215158]
[1722352677351,0.55,3320.8,3320.2,3.01186]
[1722352677649,0.00510388,3321.0,3320.3,0.06023162]
[1722352677960,0.00510388,3321.0,3320.3,3.01171]
[1722352678161,0.00510388,3321.0,3320.4,0.06022474]
[1722352679474,0.00510388,3321.0,3320.1,6.87410916]
[1722352679678,0.00510388,3321.0,3320.2,0.68741092]
[1722352680017,0.00510388,3321.0,3320.2,3.69927092]
[1722352680330,0.00510388,3321.0,3320.2,35.68741092]
[1722352680543,0.00510388,3321.0,3320.3,3.07198481]
[1722352681079,0.00510388,3321.0,3320.2,35.68741092]
[1722352681241,0.00510388,3321.0,3320.3,3.04901288]
[1722352681437,0.00510388,3321.0,3320.3,6.12100773]
[1722352681652,0.00510388,3321.0,3320.3,3.10923773]
[1722352681978,0.00510388,3321.0,3320.3,6.12096773]
[1722352682326,0.31527479,3320.9,3320.3,6.12096773]
[1722352682526,0.31527479,3320.9,3320.4,1.72125904]
[1722352682832,0.31527479,3320.9,3320.5,0.06022484]
[1722352683421,0.31527479,3320.9,3320.3,3.07199486]
[1722352683621,0.31527479,3320.9,3320.4,3.01167]
[1722352683817,0.31527479,3320.9,3320.5,0.06022487]
[1722352684134,0.31527479,3320.9,3320.6,0.30718949]
[1722352684383,0.31527479,3320.9,3320.5,0.06022487]
[1722352684736,0.31527479,3320.9,3320.4,0.06022489]
[1722352685141,0.31527479,3320.9,3320.4,0.0602249]
[1722352686760,0.31527479,3320.9,3320.4,3.0719049]
[1722352687889,0.31527479,3320.9,3320.6,3.01144]
[1722352688031,0.31527479,3320.9,3320.7,0.59593361]
[1722352688228,0.31527479,3320.9,3320.8,0.06021899]
[1722352689082,0.31527479,3320.9,3320.5,5.35728]
[1722352689383,0.31527479,3320.9,3320.5,2.3457]
[1722352689540,0.31527479,3320.9,3320.4,3.01161]
[1722352689895,0.31527479,3320.9,3320.5,3.312711]
[1722352690049,0.31527479,3320.9,3320.7,3.01132]
[1722352690227,0.31527479,3320.9,3320.8,6.08285777]
[1722352690433,0.31527479,3320.9,3320.8,5.42762]
[1722352690646,0.31527479,3320.9,3320.8,5.45986166]
[1722352690929,0.31527479,3320.9,3320.8,9.31830783]
[1722352691135,0.00510388,3321.0,3320.9,6.02246]
[1722352691389,0.00510388,3321.0,3320.9,6.08267383]
[1722352691597,0.00510388,3321.0,3320.8,3.29566783]
[1722352691877,0.00510388,3321.0,3320.8,6.30693783]
[1722352692091,0.00510388,3321.0,3320.9,3.64192378]
[1722352692680,0.00510388,3321.0,3320.9,0.63069378]
[1722352692888,0.00510388,3321.0,3320.8,2.44854166]
[1722352693091,0.00510388,3321.0,3320.9,3.01123]
[1722352693290,0.00510388,3321.0,3320.9,6.08267419]
[1722352694463,0.00510388,3321.0,3320.9,41.08267419]
[1722352694838,0.00510388,3321.0,3320.9,44.09390419]
[1722352695035,0.00510388,3321.0,3320.9,47.14291707]
[1722352695235,0.00510388,3321.0,3320.9,50.14291707]
[1722352696981,0.00510388,3321.0,3320.9,52.57660288]
[1722352699289,0.00510388,3321.0,3320.9,52.87880288]
[1722352699512,0.00510388,3321.0,3320.9,55.89003288]
[1722352700182,0.00510388,3321.0,3320.9,52.87880288]
[1722352700416,0.00510388,3321.0,3320.9,49.86757288]
[1722352700620,0.00510388,3321.0,3320.9,46.55414288]
[1722352700823,0.00510388,3321.0,3320.8,0.03224166]
[1722352701835,0.55510388,3321.0,3320.8,0.03224166]
[1722352701992,0.00510388,3321.0,3320.8,0.03224166]
[1722352703734,0.00510388,3321.0,3320.8,0.09245679]
[1722352704150,0.00510388,3321.0,3320.8,0.03224166]
[1722352706896,0.55510388,3321.0,3320.8,0.03224166]
[1722352707133,0.04248895,3320.9,3320.8,0.03224166]
[1722352707511,0.59759283,3321.0,3320.8,0.03224166]
[1722352708490,3.60875283,3321.0,3320.8,0.03224166]
[1722352708689,0.59759283,3321.0,3320.8,0.03224166]
[1722352709533,3.60874283,3321.0,3320.8,0.03224166]
[1722352709736,0.59759283,3321.0,3320.8,0.03224166]
[1722352710105,0.00510388,3321.0,3320.8,0.03224166]
[1722352713356,0.00510388,3321.0,3320.8,0.33661583]
[1722352713640,0.00510388,3321.0,3320.9,0.06022226]
[1722352713856,0.00510388,3321.0,3320.8,0.03224166]
[1722352715194,0.32034261,3321.0,3320.8,0.03224166]
[1722352721404,2.2854,3320.9,3320.8,0.03224166]
[1722352721607,8.85786,3320.9,3320.8,0.03224166]
[1722352721807,10.0621187,3320.9,3320.8,0.03224166]
[1722352722856,7.0508887,3320.9,3320.8,0.03224166]
[1722352724008,10.0621187,3320.9,3320.8,0.03224166]
[1722352724450,7.0508887,3320.9,3320.8,0.03224166]
[1722352724948,2.8354,3320.9,3320.8,0.03224166]
[1722352725281,0.55,3320.9,3320.8,0.03224166]
[1722352725490,0.32034261,3321.0,3320.8,0.03224166]
[1722352725857,0.32034261,3321.0,3320.8,0.09246215]
[1722352726212,0.32034261,3321.0,3320.8,0.03224166]
[1722352728598,3.60371895,3320.9,3320.8,0.03224166]
[1722352728813,2.99434261,3321.0,3320.8,0.03224166]
[1722352729296,3.03683156,3321.0,3320.8,0.03224166]
[1722352729794,2.99434261,3321.0,3320.8,0.03224166]
[1722352730098,6.04797156,3321.0,3320.8,0.03224166]
[1722352730302,6.02246,3320.9,3320.8,0.03224166]
[1722352730611,6.61494895,3320.9,3320.8,0.03224166]
[1722352731787,9.06924895,3320.9,3320.8,0.03224166]
[1722352733502,2.99434261,3321.0,3320.8,0.03224166]
[1722352733800,0.32034261,3321.0,3320.8,0.03224166]
[1722352734000,3.05371895,3320.9,3320.8,0.03224166]
[1722352734884,0.55,3320.9,3320.8,0.03224166]
[1722352735454,2.99434261,3321.0,3320.8,0.03224166]
[1722352735704,0.32034261,3321.0,3320.8,0.03224166]
[1722352738249,3.33148261,3321.0,3320.8,0.03224166]
[1722352738406,0.32034261,3321.0,3320.8,0.03224166]
[1722352742746,0.00510388,3321.0,3320.8,0.03224166]
[1722352744646,0.00510388,3321.0,3320.9,0.30435817]
[1722352744882,0.00510388,3321.0,3320.8,0.09246059]
[1722352745092,0.00510388,3321.0,3320.8,0.03224166]
[1722352745400,0.04759283,3321.0,3320.8,0.03224166]
[1722352745608,3.56123,3320.9,3320.8,0.03224166]
[1722352745952,3.60371895,3320.9,3320.8,0.03224166]
[1722352746255,0.59248895,3320.9,3320.8,0.03224166]
[1722352747000,3.60371895,3320.9,3320.8,0.03224166]
[1722352747149,3.44070491,3320.9,3320.8,0.03224166]
[1722352747358,3.05371895,3320.9,3320.8,0.03224166]
[1722352747556,0.04248895,3320.9,3320.8,0.03224166]
[1722352747754,0.00510388,3321.0,3320.8,0.03224166]
[1722352748749,0.32034472,3321.0,3320.8,0.03224166]
[1722352748955,0.32034472,3321.0,3320.9,0.24902417]
[1722352750470,0.32034472,3321.0,3320.8,0.03224166]
[1722352750694,3.03683367,3321.0,3320.8,0.03224166]
[1722352750995,3.01123,3320.9,3320.8,0.03224166]
[1722352751358,3.05371895,3320.9,3320.8,0.03224166]
[1722352751601,6.78500671,3320.9,3320.8,0.03224166]
[1722352751903,8.01255139,3320.9,3320.8,0.03224166]
[1722352752114,5.00132139,3320.9,3320.8,0.03224166]
[1722352752404,6.78500671,3320.9,3320.8,0.03224166]
[1722352754508,9.79623671,3320.9,3320.8,0.03224166]
[1722352755300,6.78500671,3320.9,3320.8,0.03224166]
[1722352755501,2.99434472,3321.0,3320.8,0.03224166]
[1722352755502,3.33148472,3321.0,3320.8,0.03224166]
[1722352755808,0.36283367,3321.0,3320.8,0.03224166]
[1722352755965,3.37402367,3321.0,3320.8,0.03224166]
[1722352756304,0.36283367,3321.0,3320.8,0.03224166]
[1722352756485,0.32034472,3321.0,3320.8,0.03224166]
[1722352758275,0.32034472,3321.0,3320.8,0.33661483]
[1722352758427,0.32034472,3321.0,3320.8,0.03224166]
[1722352759342,0.32034472,3321.0,3320.8,2.35564166]
[1722352760266,0.32034472,3321.0,3320.8,0.03224166]
[1722352765148,0.32034472,3321.0,3320.8,0.09246023]
[1722352765484,0.32034472,3321.0,3320.9,2.3763]
[1722352765666,0.00510388,3321.0,3320.9,2.62317602]
[1722352765837,0.00510388,3321.0,3320.9,37.62317602]
[1722352766043,0.00510388,3321.0,3320.9,2.62317602]
[1722352766274,0.00510388,3321.0,3320.9,5.69462406]
[1722352766639,0.00510388,3321.0,3320.9,8.70585406]
[1722352768350,0.00510388,3321.0,3320.9,8.64563602]